[Event "Titled Tuesday Blitz August 1 Late 2023"]
[White "Suder, Jakub"]
[Black "Grossboss19"]
[WhiteFideId "1195310"]
[WhiteElo "2580"]
[BlackElo "2498"]
[Result "0-1"]
[Round "8"]
[TimeControl "180+1"]
[Date "2023.08.01"]
[WhiteClock "0:00:00"]
[BlackClock "0:00:03"]
[Board "49"]

1. d4 {[%clk 0:02:57]}  Nf6 {[%clk 0:02:59]} 2. c4 {[%clk 0:02:56]}  e6 {[%clk 0:02:56]} 3. Nc3 {[%clk 0:02:55]}  Bb4 {[%clk 0:02:54]} 4. Qc2 {[%clk 0:02:50]}  d5 {[%clk 0:02:52]} 5. Bg5 {[%clk 0:02:47]}  O-O {[%clk 0:02:49]} 6. e3 {[%clk 0:02:47]}  c5 {[%clk 0:02:37]} 7. Nf3 {[%clk 0:02:22]}  cxd4 {[%clk 0:02:34]} 8. exd4 {[%clk 0:02:20]}  h6 {[%clk 0:02:31]} 9. Bh4 {[%clk 0:02:08]}  Nc6 {[%clk 0:02:25]} 10. cxd5 {[%clk 0:01:56]}  exd5 {[%clk 0:02:15]} 11. Be2 {[%clk 0:01:53]}  Re8 {[%clk 0:02:03]} 12. O-O {[%clk 0:01:52]}  Bxc3 {[%clk 0:01:23]} 13. bxc3 {[%clk 0:01:49]}  g5 {[%clk 0:01:10]} 14. Nxg5 {[%clk 0:01:30]}  hxg5 {[%clk 0:01:08]} 15. Bxg5 {[%clk 0:01:31]}  Qd6 {[%clk 0:01:05]} 16. Bd3 {[%clk 0:01:26]}  Ne4 {[%clk 0:01:04]} 17. Rae1 {[%clk 0:01:21]}  Bf5 {[%clk 0:00:51]} 18. f3 {[%clk 0:01:13]}  Nxg5 {[%clk 0:00:49]} 19. Bxf5 {[%clk 0:01:11]}  Qf4 {[%clk 0:00:45]} 20. Bd7 {[%clk 0:01:00]}  Red8 {[%clk 0:00:40]} 21. Bg4 {[%clk 0:01:00]}  Re8 {[%clk 0:00:33]} 22. h4 {[%clk 0:00:54]}  Nh7 {[%clk 0:00:27]} 23. Qf2 {[%clk 0:00:43]}  Nf6 {[%clk 0:00:24]} 24. Bh3 {[%clk 0:00:40]}  Rxe1 {[%clk 0:00:20]} 25. Rxe1 {[%clk 0:00:38]}  Re8 {[%clk 0:00:21]} 26. Rxe8+ {[%clk 0:00:33]}  Nxe8 {[%clk 0:00:22]} 27. Qe1 {[%clk 0:00:31]}  Nf6 {[%clk 0:00:22]} 28. Bc8 {[%clk 0:00:29]}  b6 {[%clk 0:00:21]} 29. Bb7 {[%clk 0:00:28]}  Qc7 {[%clk 0:00:21]} 30. Bxc6 {[%clk 0:00:23]}  Qxc6 {[%clk 0:00:22]} 31. Qe5 {[%clk 0:00:23]}  Ne8 {[%clk 0:00:18]} 32. h5 {[%clk 0:00:21]}  Qe6 {[%clk 0:00:16]} 33. Qg5+ {[%clk 0:00:19]}  Kh7 {[%clk 0:00:16]} 34. Kh1 {[%clk 0:00:13]}  Ng7 {[%clk 0:00:15]} 35. g4 {[%clk 0:00:11]}  Ne8 {[%clk 0:00:14]} 36. Kg2 {[%clk 0:00:09]}  Nd6 {[%clk 0:00:11]} 37. Kg3 {[%clk 0:00:07]}  Qe1+ {[%clk 0:00:10]} 38. Kh3 {[%clk 0:00:07]}  Qf1+ {[%clk 0:00:09]} 39. Kg3 {[%clk 0:00:07]}  Qe1+ {[%clk 0:00:08]} 40. Kh3 {[%clk 0:00:08]}  Qxc3 {[%clk 0:00:07]} 41. Qf6 {[%clk 0:00:06]}  Qc7 {[%clk 0:00:07]} 42. g5 {[%clk 0:00:04]}  Qd7+ {[%clk 0:00:05]} 43. Kh2 {[%clk 0:00:04]}  Ne8 {[%clk 0:00:03]} 44. g6+ {[%clk 0:00:04]}  fxg6 {[%clk 0:00:04]} 45. hxg6+ {[%clk 0:00:04]}  Kg8 {[%clk 0:00:04]} 46. Qg5 {[%clk 0:00:03]}  Qd6+ {[%clk 0:00:04]} 47. f4 {[%clk 0:00:02]}  Qf6 {[%clk 0:00:04]} 48. Qh6 {[%clk 0:00:01]}  Qg7 {[%clk 0:00:03]} 49. Qg5 {[%clk 0:00:00]}  Nf6 {[%clk 0:00:03]} 0-1


[Site "https://www.chess.com"]

[Event "Titled Tuesday Blitz August 1 Late 2023"]
[White "Sivakumar, Shaaketh"]
[Black "Domingo Nunez, Ruben"]
[WhiteFideId "30940176"]
[BlackFideId "22245570"]
[WhiteElo "2497"]
[BlackElo "2573"]
[Result "0-1"]
[Round "8"]
[TimeControl "180+1"]
[Date "2023.08.01"]
[WhiteClock "0:01:37"]
[BlackClock "0:01:56"]
[Board "50"]

1. e4 {[%clk 0:02:31]}  g6 {[%clk 0:02:58]} 2. d4 {[%clk 0:02:31]}  Bg7 {[%clk 0:02:59]} 3. Nc3 {[%clk 0:02:31]}  c6 {[%clk 0:02:55]} 4. Be3 {[%clk 0:02:32]}  d5 {[%clk 0:02:55]} 5. e5 {[%clk 0:02:31]}  f6 {[%clk 0:02:56]} 6. f4 {[%clk 0:02:31]}  Nh6 {[%clk 0:02:56]} 7. Nf3 {[%clk 0:02:30]}  Bg4 {[%clk 0:02:56]} 8. Be2 {[%clk 0:02:28]}  O-O {[%clk 0:02:55]} 9. O-O {[%clk 0:02:25]}  Nf5 {[%clk 0:02:54]} 10. Bf2 {[%clk 0:02:25]}  Bxf3 {[%clk 0:02:54]} 11. Bxf3 {[%clk 0:02:25]}  fxe5 {[%clk 0:02:55]} 12. fxe5 {[%clk 0:02:25]}  e6 {[%clk 0:02:56]} 13. Qd2 {[%clk 0:02:25]}  c5 {[%clk 0:02:56]} 14. dxc5 {[%clk 0:02:21]}  Nc6 {[%clk 0:02:57]} 15. Rfe1 {[%clk 0:02:09]}  Nxe5 {[%clk 0:02:55]} 16. Be2 {[%clk 0:02:10]}  Bh6 {[%clk 0:02:50]} 17. Qd1 {[%clk 0:02:05]}  Ne3 {[%clk 0:02:41]} 18. Qd4 {[%clk 0:02:03]}  Rxf2 {[%clk 0:02:20]} 19. Kxf2 {[%clk 0:01:51]}  Qf6+ {[%clk 0:02:20]} 20. Bf3 {[%clk 0:01:47]}  N5g4+ {[%clk 0:02:16]} 21. Qxg4 {[%clk 0:01:43]}  Nxg4+ {[%clk 0:02:15]} 22. Kf1 {[%clk 0:01:42]}  Nxh2+ {[%clk 0:02:12]} 23. Kf2 {[%clk 0:01:40]}  Qd4+ {[%clk 0:02:10]} 24. Kg3 {[%clk 0:01:39]}  Qf4+ {[%clk 0:02:08]} 25. Kf2 {[%clk 0:01:38]}  Nxf3 {[%clk 0:01:56]} 26. gxf3 {[%clk 0:01:39]}  Qh2+ {[%clk 0:01:56]} 27. Kf1 {[%clk 0:01:37]}  Rf8 {[%clk 0:01:56]} 0-1


[Site "https://www.chess.com"]

[Event "Titled Tuesday Blitz August 1 Late 2023"]
[White "Peycheva, Gergana"]
[Black "Taboas Rodriguez, Daniel"]
[WhiteFideId "2916711"]
[BlackFideId "2208466"]
[WhiteElo "2497"]
[BlackElo "2573"]
[Result "0-1"]
[Round "8"]
[TimeControl "180+1"]
[Date "2023.08.01"]
[WhiteClock "0:00:00"]
[BlackClock "0:01:25"]
[Board "51"]

1. d4 {[%clk 0:03:00]}  Nf6 {[%clk 0:02:59]} 2. c4 {[%clk 0:03:01]}  g6 {[%clk 0:02:59]} 3. Nc3 {[%clk 0:03:01]}  Bg7 {[%clk 0:02:59]} 4. e4 {[%clk 0:03:01]}  d6 {[%clk 0:02:59]} 5. Nf3 {[%clk 0:03:01]}  O-O {[%clk 0:03:00]} 6. Be2 {[%clk 0:03:01]}  e5 {[%clk 0:03:00]} 7. O-O {[%clk 0:03:01]}  Nc6 {[%clk 0:02:57]} 8. d5 {[%clk 0:02:58]}  Ne7 {[%clk 0:02:58]} 9. b4 {[%clk 0:02:58]}  Nh5 {[%clk 0:02:56]} 10. g3 {[%clk 0:02:56]}  f5 {[%clk 0:02:55]} 11. Ng5 {[%clk 0:02:49]}  Nf6 {[%clk 0:02:54]} 12. b5 {[%clk 0:02:48]}  Nxe4 {[%clk 0:02:49]} 13. Ngxe4 {[%clk 0:02:44]}  fxe4 {[%clk 0:02:50]} 14. Nxe4 {[%clk 0:02:44]}  Nf5 {[%clk 0:02:45]} 15. Bg5 {[%clk 0:02:17]}  Qe8 {[%clk 0:02:43]} 16. Bg4 {[%clk 0:01:56]}  Nd4 {[%clk 0:02:40]} 17. Kg2 {[%clk 0:01:55]}  Bf5 {[%clk 0:02:35]} 18. f3 {[%clk 0:01:26]}  Bxg4 {[%clk 0:02:20]} 19. fxg4 {[%clk 0:01:25]}  Rxf1 {[%clk 0:02:21]} 20. Qxf1 {[%clk 0:01:22]}  Qd7 {[%clk 0:02:20]} 21. Nf6+ {[%clk 0:01:06]}  Bxf6 {[%clk 0:02:19]} 22. Qxf6 {[%clk 0:01:06]}  Rf8 {[%clk 0:02:10]} 23. Qe7 {[%clk 0:01:06]}  Qxg4 {[%clk 0:02:10]} 24. Bh6 {[%clk 0:00:39]}  Qe2+ {[%clk 0:01:55]} 25. Kh3 {[%clk 0:00:38]}  Qh5+ {[%clk 0:01:50]} 26. Qh4 {[%clk 0:00:38]}  Qf5+ {[%clk 0:01:46]} 27. Qg4 {[%clk 0:00:38]}  Qxg4+ {[%clk 0:01:38]} 28. Kxg4 {[%clk 0:00:36]}  Rf2 {[%clk 0:01:39]} 29. Be3 {[%clk 0:00:13]}  Rxh2 {[%clk 0:01:36]} 30. Bxd4 {[%clk 0:00:14]}  exd4 {[%clk 0:01:36]} 31. Rd1 {[%clk 0:00:14]}  Rxa2 {[%clk 0:01:34]} 32. Rxd4 {[%clk 0:00:14]}  Re2 {[%clk 0:01:31]} 33. Rf4 {[%clk 0:00:05]}  Kg7 {[%clk 0:01:29]} 34. Kf3 {[%clk 0:00:04]}  Re7 {[%clk 0:01:29]} 35. Rd4 {[%clk 0:00:04]}  Re8 {[%clk 0:01:26]} 36. Rd1 {[%clk 0:00:04]}  h5 {[%clk 0:01:25]} 37. Ra1 {[%clk 0:00:05]}  Ra8 {[%clk 0:01:26]} 38. Kf4 {[%clk 0:00:04]}  Kf6 {[%clk 0:01:25]} 39. g4 {[%clk 0:00:03]}  g5+ {[%clk 0:01:25]} 40. Ke4 {[%clk 0:00:00]}  hxg4 {[%clk 0:01:25]} 0-1


[Site "https://www.chess.com"]

[Event "Titled Tuesday Blitz August 1 Late 2023"]
[White "Willy, Stephen"]
[Black "Adan Bermudez, Sergio"]
[WhiteFideId "30981468"]
[BlackFideId "2292726"]
[WhiteElo "2489"]
[BlackElo "2570"]
[Result "1-0"]
[Round "8"]
[TimeControl "180+1"]
[Date "2023.08.01"]
[WhiteClock "0:01:17"]
[BlackClock "0:01:15"]
[Board "52"]

1. e4 {[%clk 0:03:00]}  d6 {[%clk 0:02:58]} 2. d4 {[%clk 0:03:00]}  Nf6 {[%clk 0:02:59]} 3. Nc3 {[%clk 0:02:58]}  e5 {[%clk 0:03:00]} 4. Nf3 {[%clk 0:02:57]}  Nbd7 {[%clk 0:02:52]} 5. Bc4 {[%clk 0:02:53]}  h6 {[%clk 0:02:43]} 6. dxe5 {[%clk 0:02:50]}  dxe5 {[%clk 0:02:43]} 7. h3 {[%clk 0:02:46]}  Bb4 {[%clk 0:02:42]} 8. O-O {[%clk 0:02:44]}  O-O {[%clk 0:02:41]} 9. Qe2 {[%clk 0:02:29]}  c6 {[%clk 0:02:40]} 10. Rd1 {[%clk 0:02:28]}  Qe7 {[%clk 0:02:36]} 11. Bd2 {[%clk 0:02:27]}  b5 {[%clk 0:02:34]} 12. Bb3 {[%clk 0:02:25]}  Nc5 {[%clk 0:02:33]} 13. a3 {[%clk 0:02:13]}  Nxb3 {[%clk 0:02:32]} 14. cxb3 {[%clk 0:02:13]}  Bd6 {[%clk 0:02:29]} 15. Rac1 {[%clk 0:02:08]}  Be6 {[%clk 0:02:27]} 16. b4 {[%clk 0:02:07]}  Bb3 {[%clk 0:02:25]} 17. Re1 {[%clk 0:02:07]}  Rad8 {[%clk 0:02:22]} 18. g4 {[%clk 0:02:07]}  a5 {[%clk 0:02:14]} 19. bxa5 {[%clk 0:02:05]}  Bc4 {[%clk 0:02:15]} 20. Qd1 {[%clk 0:02:01]}  Bc7 {[%clk 0:02:11]} 21. Nh4 {[%clk 0:01:57]}  Bxa5 {[%clk 0:01:54]} 22. Nf5 {[%clk 0:01:56]}  Qd7 {[%clk 0:01:54]} 23. Be3 {[%clk 0:01:48]}  Qxd1 {[%clk 0:01:53]} 24. Rcxd1 {[%clk 0:01:48]}  Bxc3 {[%clk 0:01:50]} 25. bxc3 {[%clk 0:01:43]}  Nxe4 {[%clk 0:01:47]} 26. Rxd8 {[%clk 0:01:38]}  Rxd8 {[%clk 0:01:44]} 27. Bb6 {[%clk 0:01:37]}  Rb8 {[%clk 0:01:43]} 28. Bc7 {[%clk 0:01:34]}  Rb7 {[%clk 0:01:43]} 29. Bxe5 {[%clk 0:01:34]}  Ng5 {[%clk 0:01:39]} 30. Re3 {[%clk 0:01:27]}  Bd5 {[%clk 0:01:35]} 31. Bxg7 {[%clk 0:01:24]}  Nf3+ {[%clk 0:01:28]} 32. Kf1 {[%clk 0:01:23]}  Nd2+ {[%clk 0:01:26]} 33. Ke2 {[%clk 0:01:19]}  Ne4 {[%clk 0:01:23]} 34. f3 {[%clk 0:01:18]}  Bc4+ {[%clk 0:01:16]} 35. Ke1 {[%clk 0:01:16]}  Ng5 {[%clk 0:01:15]} 36. Re8+ {[%clk 0:01:15]}  Kh7 {[%clk 0:01:15]} 37. Rh8+ {[%clk 0:01:16]}  Kg6 {[%clk 0:01:15]} 38. Rxh6# {[%clk 0:01:17]} 1-0


[Site "https://www.chess.com"]

[Event "Titled Tuesday Blitz August 1 Late 2023"]
[White "Musovic, Armin"]
[Black "Kanyamarala, Tarun"]
[WhiteFideId "939935"]
[BlackFideId "45004714"]
[WhiteElo "2561"]
[BlackElo "2485"]
[Result "1-0"]
[Round "8"]
[TimeControl "180+1"]
[Date "2023.08.01"]
[WhiteClock "0:00:20"]
[BlackClock "0:00:17"]
[Board "54"]

1. a3 {[%clk 0:03:00]}  e5 {[%clk 0:02:56]} 2. d4 {[%clk 0:03:00]}  exd4 {[%clk 0:02:56]} 3. Qxd4 {[%clk 0:03:01]}  Nc6 {[%clk 0:02:56]} 4. Qa4 {[%clk 0:03:02]}  Nf6 {[%clk 0:02:54]} 5. Nc3 {[%clk 0:03:02]}  d5 {[%clk 0:02:52]} 6. Bg5 {[%clk 0:03:03]}  Be7 {[%clk 0:02:51]} 7. O-O-O {[%clk 0:03:02]}  Be6 {[%clk 0:02:49]} 8. e4 {[%clk 0:03:02]}  d4 {[%clk 0:02:38]} 9. Nf3 {[%clk 0:02:58]}  Bd7 {[%clk 0:02:25]} 10. Nb5 {[%clk 0:02:54]}  Nxe4 {[%clk 0:02:16]} 11. Bxe7 {[%clk 0:02:50]}  Nxe7 {[%clk 0:02:16]} 12. Qxd4 {[%clk 0:02:47]}  Nf6 {[%clk 0:02:12]} 13. Ne5 {[%clk 0:02:07]}  Ned5 {[%clk 0:01:26]} 14. Nxd7 {[%clk 0:01:58]}  Qxd7 {[%clk 0:01:25]} 15. Qe5+ {[%clk 0:01:55]}  Qe7 {[%clk 0:01:24]} 16. Rxd5 {[%clk 0:01:44]}  Nxd5 {[%clk 0:01:23]} 17. Qxd5 {[%clk 0:01:33]}  Rd8 {[%clk 0:01:07]} 18. Nxc7+ {[%clk 0:01:21]}  Kf8 {[%clk 0:00:53]} 19. Qa5 {[%clk 0:01:11]}  b6 {[%clk 0:00:47]} 20. Qc3 {[%clk 0:01:08]}  Rc8 {[%clk 0:00:37]} 21. Ba6 {[%clk 0:01:05]}  Rxc7 {[%clk 0:00:36]} 22. Qf3 {[%clk 0:01:06]}  g6 {[%clk 0:00:31]} 23. h4 {[%clk 0:01:04]}  h5 {[%clk 0:00:30]} 24. Kb1 {[%clk 0:00:58]}  Kg7 {[%clk 0:00:30]} 25. g4 {[%clk 0:00:56]}  hxg4 {[%clk 0:00:28]} 26. Qxg4 {[%clk 0:00:57]}  Rc5 {[%clk 0:00:25]} 27. Rh3 {[%clk 0:00:23]}  Rg5 {[%clk 0:00:17]} 28. hxg5 {[%clk 0:00:20]} 1-0


[Site "https://www.chess.com"]

[Event "Titled Tuesday Blitz August 1 Late 2023"]
[White "Karwowski, Kacper"]
[Black "Salazar Farias, Luis German"]
[WhiteFideId "1126032"]
[BlackFideId "3902170"]
[WhiteElo "2560"]
[BlackElo "2477"]
[Result "0-1"]
[Round "8"]
[TimeControl "180+1"]
[Date "2023.08.01"]
[WhiteClock "0:00:03"]
[BlackClock "0:00:04"]
[Board "55"]

1. d4 {[%clk 0:03:00]}  Nf6 {[%clk 0:02:58]} 2. Nf3 {[%clk 0:03:00]}  d5 {[%clk 0:02:57]} 3. c4 {[%clk 0:02:58]}  e6 {[%clk 0:02:56]} 4. Nc3 {[%clk 0:02:57]}  Bb4 {[%clk 0:02:53]} 5. cxd5 {[%clk 0:02:51]}  exd5 {[%clk 0:02:52]} 6. Bd2 {[%clk 0:02:47]}  O-O {[%clk 0:02:39]} 7. e3 {[%clk 0:02:47]}  c6 {[%clk 0:02:23]} 8. Bd3 {[%clk 0:02:45]}  Re8 {[%clk 0:02:18]} 9. Qc2 {[%clk 0:02:39]}  Bd6 {[%clk 0:02:00]} 10. h3 {[%clk 0:02:33]}  Na6 {[%clk 0:01:54]} 11. a3 {[%clk 0:02:32]}  Nc7 {[%clk 0:01:52]} 12. g4 {[%clk 0:02:24]}  Qe7 {[%clk 0:01:50]} 13. O-O-O {[%clk 0:01:59]}  Ne4 {[%clk 0:01:44]} 14. Bxe4 {[%clk 0:01:59]}  dxe4 {[%clk 0:01:43]} 15. Ng1 {[%clk 0:01:54]}  b5 {[%clk 0:01:37]} 16. Nge2 {[%clk 0:01:53]}  a5 {[%clk 0:01:35]} 17. Ng3 {[%clk 0:01:37]}  Bxg3 {[%clk 0:01:29]} 18. fxg3 {[%clk 0:01:38]}  b4 {[%clk 0:01:29]} 19. Nb1 {[%clk 0:01:37]}  Ba6 {[%clk 0:01:19]} 20. Qc5 {[%clk 0:01:28]}  Qxc5+ {[%clk 0:00:59]} 21. dxc5 {[%clk 0:01:29]}  Rab8 {[%clk 0:00:53]} 22. axb4 {[%clk 0:01:06]}  axb4 {[%clk 0:00:52]} 23. Be1 {[%clk 0:01:06]}  Ne6 {[%clk 0:00:40]} 24. Rd6 {[%clk 0:01:05]}  Nxc5 {[%clk 0:00:34]} 25. Rxc6 {[%clk 0:01:01]}  Rec8 {[%clk 0:00:31]} 26. Rxc8+ {[%clk 0:00:59]}  Rxc8 {[%clk 0:00:32]} 27. Kd1 {[%clk 0:00:53]}  Nb3 {[%clk 0:00:20]} 28. Bd2 {[%clk 0:00:38]}  Bd3 {[%clk 0:00:20]} 29. Re1 {[%clk 0:00:18]}  Bxb1 {[%clk 0:00:19]} 30. Bxb4 {[%clk 0:00:18]}  Rc1+ {[%clk 0:00:16]} 31. Ke2 {[%clk 0:00:19]}  Bd3+ {[%clk 0:00:16]} 32. Kf2 {[%clk 0:00:19]}  Rxe1 {[%clk 0:00:14]} 33. Kxe1 {[%clk 0:00:16]}  f6 {[%clk 0:00:14]} 34. Bc3 {[%clk 0:00:15]}  Kf7 {[%clk 0:00:14]} 35. Kf2 {[%clk 0:00:15]}  Ke6 {[%clk 0:00:14]} 36. h4 {[%clk 0:00:15]}  g6 {[%clk 0:00:13]} 37. h5 {[%clk 0:00:13]}  gxh5 {[%clk 0:00:10]} 38. gxh5 {[%clk 0:00:14]}  Kf5 {[%clk 0:00:11]} 39. Kg2 {[%clk 0:00:13]}  Be2 {[%clk 0:00:10]} 40. h6 {[%clk 0:00:13]}  Kg6 {[%clk 0:00:10]} 41. Kh3 {[%clk 0:00:12]}  Kg5 {[%clk 0:00:08]} 42. Kg2 {[%clk 0:00:05]}  f5 {[%clk 0:00:03]} 43. Kf2 {[%clk 0:00:06]}  Bd3 {[%clk 0:00:03]} 44. Bg7 {[%clk 0:00:07]}  Kg4 {[%clk 0:00:04]} 45. Be5 {[%clk 0:00:06]}  Kg5 {[%clk 0:00:03]} 46. Bf4+ {[%clk 0:00:06]}  Kg6 {[%clk 0:00:03]} 47. Ke1 {[%clk 0:00:07]}  Kf7 {[%clk 0:00:04]} 48. Kf2 {[%clk 0:00:07]}  Ke6 {[%clk 0:00:04]} 49. Kg2 {[%clk 0:00:07]}  Kf6 {[%clk 0:00:04]} 50. Kh3 {[%clk 0:00:08]}  Be2 {[%clk 0:00:04]} 51. Kh4 {[%clk 0:00:08]}  Bg4 {[%clk 0:00:04]} 52. Bc7 {[%clk 0:00:06]}  Kg6 {[%clk 0:00:04]} 53. Bf4 {[%clk 0:00:05]}  Nc1 {[%clk 0:00:03]} 54. b4 {[%clk 0:00:05]}  Nd3 {[%clk 0:00:04]} 55. b5 {[%clk 0:00:05]}  Ne1 {[%clk 0:00:04]} 56. b6 {[%clk 0:00:03]}  Ng2# {[%clk 0:00:04]} 0-1


[Site "https://www.chess.com"]

[Event "Titled Tuesday Blitz August 1 Late 2023"]
[White "D`Arruda, Ricardo D."]
[Black "Karamsetty, Jeevan"]
[WhiteFideId "100692"]
[BlackFideId "2025337"]
[WhiteElo "2471"]
[BlackElo "2558"]
[Result "1/2-1/2"]
[Round "8"]
[TimeControl "180+1"]
[Date "2023.08.01"]
[WhiteClock "0:00:08"]
[BlackClock "0:00:06"]
[Board "56"]

1. Nf3 {[%clk 0:03:00]}  g6 {[%clk 0:02:59]} 2. d4 {[%clk 0:02:59]}  Bg7 {[%clk 0:02:59]} 3. e4 {[%clk 0:02:59]}  d6 {[%clk 0:02:59]} 4. Nc3 {[%clk 0:03:00]}  Nf6 {[%clk 0:02:59]} 5. Bg5 {[%clk 0:03:00]}  O-O {[%clk 0:02:59]} 6. Qd2 {[%clk 0:02:59]}  Nc6 {[%clk 0:02:56]} 7. d5 {[%clk 0:02:58]}  Nb8 {[%clk 0:02:51]} 8. O-O-O {[%clk 0:02:57]}  e5 {[%clk 0:02:45]} 9. dxe6 {[%clk 0:02:52]}  Qe8 {[%clk 0:02:05]} 10. exf7+ {[%clk 0:02:50]}  Qxf7 {[%clk 0:02:06]} 11. e5 {[%clk 0:02:42]}  Ne8 {[%clk 0:01:50]} 12. Bh6 {[%clk 0:02:16]}  Nc6 {[%clk 0:01:29]} 13. Bxg7 {[%clk 0:02:14]}  Qxg7 {[%clk 0:01:24]} 14. Bc4+ {[%clk 0:02:13]}  Kh8 {[%clk 0:01:24]} 15. exd6 {[%clk 0:01:56]}  Nxd6 {[%clk 0:01:24]} 16. Bb3 {[%clk 0:01:55]}  Bg4 {[%clk 0:01:21]} 17. Rhe1 {[%clk 0:01:40]}  Bxf3 {[%clk 0:01:04]} 18. gxf3 {[%clk 0:01:41]}  Rxf3 {[%clk 0:01:04]} 19. Bd5 {[%clk 0:01:41]}  Rf5 {[%clk 0:00:57]} 20. Bxc6 {[%clk 0:01:40]}  bxc6 {[%clk 0:00:58]} 21. Re2 {[%clk 0:01:34]}  Raf8 {[%clk 0:00:51]} 22. Rde1 {[%clk 0:01:34]}  R5f7 {[%clk 0:00:46]} 23. Qe3 {[%clk 0:01:07]}  Kg8 {[%clk 0:00:41]} 24. Qxa7 {[%clk 0:01:05]}  Qh6+ {[%clk 0:00:39]} 25. Kb1 {[%clk 0:01:05]}  Qxh2 {[%clk 0:00:39]} 26. Qc5 {[%clk 0:00:59]}  Rxf2 {[%clk 0:00:29]} 27. a4 {[%clk 0:00:46]}  Rxe2 {[%clk 0:00:25]} 28. Rxe2 {[%clk 0:00:47]}  Qh1+ {[%clk 0:00:17]} 29. Ka2 {[%clk 0:00:48]}  Rf5 {[%clk 0:00:17]} 30. Qe3 {[%clk 0:00:41]}  Qh4 {[%clk 0:00:11]} 31. Qe6+ {[%clk 0:00:41]}  Rf7 {[%clk 0:00:07]} 32. b3 {[%clk 0:00:32]}  Qd4 {[%clk 0:00:06]} 33. Ne4 {[%clk 0:00:28]}  Nxe4 {[%clk 0:00:04]} 34. Rxe4 {[%clk 0:00:26]}  Qd2 {[%clk 0:00:04]} 35. Re2 {[%clk 0:00:25]}  Qd5 {[%clk 0:00:04]} 36. Qe8+ {[%clk 0:00:25]}  Kg7 {[%clk 0:00:04]} 37. Qe3 {[%clk 0:00:21]}  Qf5 {[%clk 0:00:04]} 38. Qc3+ {[%clk 0:00:21]}  Qf6 {[%clk 0:00:04]} 39. Qc4 {[%clk 0:00:20]}  h5 {[%clk 0:00:04]} 40. Re6 {[%clk 0:00:20]}  Qf2 {[%clk 0:00:03]} 41. Qc3+ {[%clk 0:00:20]}  Kh7 {[%clk 0:00:03]} 42. Qxc6 {[%clk 0:00:21]}  Qg3 {[%clk 0:00:03]} 43. Qc4 {[%clk 0:00:18]}  h4 {[%clk 0:00:03]} 44. Re4 {[%clk 0:00:18]}  Rf2 {[%clk 0:00:02]} 45. Rxh4+ {[%clk 0:00:18]}  Kg7 {[%clk 0:00:03]} 46. Qd4+ {[%clk 0:00:17]}  Kf7 {[%clk 0:00:03]} 47. Rh7+ {[%clk 0:00:17]}  Ke6 {[%clk 0:00:03]} 48. Qe4+ {[%clk 0:00:16]}  Kd6 {[%clk 0:00:03]} 49. Qe7+ {[%clk 0:00:16]}  Kc6 {[%clk 0:00:03]} 50. Qd7+ {[%clk 0:00:16]}  Kb6 {[%clk 0:00:03]} 51. Qd4+ {[%clk 0:00:16]}  Kc6 {[%clk 0:00:03]} 52. Re7 {[%clk 0:00:10]}  Rxc2+ {[%clk 0:00:03]} 53. Ka3 {[%clk 0:00:11]}  Qd6+ {[%clk 0:00:03]} 54. Qxd6+ {[%clk 0:00:11]}  cxd6 {[%clk 0:00:04]} 55. Rg7 {[%clk 0:00:11]}  Rg2 {[%clk 0:00:04]} 56. b4 {[%clk 0:00:11]}  g5 {[%clk 0:00:05]} 57. a5 {[%clk 0:00:11]}  Kb5 {[%clk 0:00:05]} 58. Rb7+ {[%clk 0:00:09]}  Kc4 {[%clk 0:00:06]} 59. Rb6 {[%clk 0:00:09]}  d5 {[%clk 0:00:06]} 60. a6 {[%clk 0:00:09]}  Rg1 {[%clk 0:00:06]} 61. Kb2 {[%clk 0:00:08]}  Rg2+ {[%clk 0:00:06]} 62. Ka3 {[%clk 0:00:09]}  Rg1 {[%clk 0:00:06]} 63. Kb2 {[%clk 0:00:08]}  Rg2+ {[%clk 0:00:06]} 64. Ka3 {[%clk 0:00:08]} 1/2-1/2


[Site "https://www.chess.com"]